Cogmind - Beta 13 @@@ ROGUE MODE // 2024.08.03 @ 19:03:33 Player: Daffa0360 Result: Self-destructed Performance ------------- Evolutions (2) 1000 Regions Visited (5) 1000 Robots Destroyed (39) 195 Value Destroyed (1265) 1265 Prototype IDs (3) 60 Alien Tech Used (0) 0 Bonus (200) 200 TOTAL SCORE: 3720 Bonus ------- Entered Garrisons 200 Cogmind --------- Core Integrity 268/550 Matter 300/300 Energy 47/100 System Corruption 0% Temperature Cool (0) Movement Core (50) Location -8/Materials Parts ------- > --- POWER (1) -------- (None) > --- PROPULSION (2) --- (None) > --- UTILITY (6) ------ Weight Redist. System Improved Signal Interpreter Advanced Terrain Scan Processor Advanced Targeting Computer > --- WEAPON (2) ------- (None) > --- INVENTORY (5) ---- Improved Signal Interpreter Particle Charger Propulsion Shielding Relay Coupler [NC] (23) Peak State ------------ > --- POWER ------------ Light Nuclear Core > --- PROPULSION ------- Airjet Airjet > --- UTILITY ---------- Small Storage Unit Weight Redist. System Sensor Array Improved Signal Interpreter Advanced Terrain Scan Processor Advanced Targeting Computer > --- WEAPON ----------- Advanced Beam Cannon Scythe > --- INVENTORY -------- Airjet Airjet Improved Signal Interpreter Improved Signal Interpreter Advanced Terrain Scan Processor Particle Charger Propulsion Shielding Relay Coupler [NC] [Rating: 31] Favorites ----------- Power Ion Engine Engine Ion Engine Power Core Light Nuclear Core Propulsion Aluminum Leg Leg Aluminum Leg Hover Unit Improved Hover Unit Utility Small Storage Unit Device Sensor Array Storage Small Storage Unit Processor Improved Targeting Computer Protection Hardened Light Armor Plating Weapon Scythe Energy Gun Pulse Rifle Energy Cannon Advanced Beam Cannon Ballistic Gun Improved Assault Rifle Impact Weapon Maul Slashing Weapon Scythe Build | -11 -10 -9 -8 -8 -8 ------- Run | Yrd Mat Mat Mat Gar Mat Slots Evolved 4 | . . 2 2 . . Power . | . . . . . . Propulsion . | . . . . . . Utility 4 | . . 2 2 . . Weapon . | . . . . . . Parts Attached 47 | 6 8 27 3 3 . Power 7 | 1 2 3 . 1 . Engine 6 | 1 2 3 . . . Core 1 | . . . . 1 . Reactor . | . . . . . . Propulsion 13 | 2 1 8 . 2 . Treads . | . . . . . . Leg 4 | 2 1 1 . . . Wheel . | . . . . . . Hover 9 | . . 7 . 2 . Flight . | . . . . . . Utility 14 | 1 2 8 3 . . Device 6 | . 2 4 . . . Storage 1 | 1 . . . . . Processor 5 | . . 2 3 . . Hackware . | . . . . . . Protection 2 | . . 2 . . . Artifact . | . . . . . . Weapon 13 | 2 3 8 . . . Energy Gun 6 | 2 2 2 . . . Energy Cannon 2 | . . 2 . . . Ballistic Gun 1 | . . 1 . . . Ballistic Cannon . | . . . . . . Launcher . | . . . . . . Special Weapon . | . . . . . . Impact Weapon 1 | . 1 . . . . Slashing Weapon 3 | . . 3 . . . Piercing Weapon . | . . . . . . Special Melee Weapon . | . . . . . . Unidentified Prototypes 3 | . 1 2 . . . Parts Lost 19 | . 4 6 . 8 1 Power 4 | . 1 2 . 1 . Propulsion 8 | . 2 2 . 4 . Utility 2 | . . . . 1 1 Weapon 5 | . 1 2 . 2 . Highest Loss Streak 9 | . 2 4 . 8 9 To Critical Strikes . | . . . . . . Average Slot Usage (%) 79 | . 74 82 98 92 42 Engine 8 | . 8 9 9 5 . Leg 9 | . 17 2 . . . Hover 7 | . . 15 18 15 . Device 10 | . 7 12 18 18 15 Storage 11 | . 14 11 9 7 . Processor 7 | . . 10 25 27 27 Energy Gun 9 | . 13 8 . . . Impact Weapon 6 | . 12 . . . . Slashing Weapon 5 | . . 10 9 8 . Naked Turns . | . . . . . . Heaviest Build 23 | 12 17 23 17 17 1 Greatest Support 22 | 20 20 16 16 22 9 Greatest Overweight (x) 3 | . 2 3 1 1 . Average Overweight (x) . | . . . 1 . . Largest Inventory Capacity 8 | 8 8 8 8 8 5 Average Capacity 7 | 6 8 8 8 7 5 Most Carried 8 | 3 7 8 8 8 4 Average Carried 5 | . 3 7 7 7 4 Final Capacity 8 | 8 8 8 8 5 5 Final Carried 8 | . 7 8 8 4 4 Class Distribution -------------------- 100% | Mutant Dominant Class ---------------- Mutant | -10/Materials Mutant | -9/Materials Mutant | -8/Materials Mutant | -8/Garrison Mutant | -8/Materials Resources | -11 -10 -9 -8 -8 -8 ----------- Run | Yrd Mat Mat Mat Gar Mat Matter Collected 648 | 229 124 210 . 85 . Remotely . | . . . . . . Salvage Created 1302 | . 423 617 . 262 . Parts 73 | . 11 46 . 16 . Haulers Intercepted 1 | . . 1 . . . Recyclers Shooed 1 | . 1 . . . . Parts Field Recycled . | . . . . . . Retrieved Matter . | . . . . . . Parts Self-Destructed . | . . . . . . Prevented . | . . . . . . Kills | -11 -10 -9 -8 -8 -8 ------- Run | Yrd Mat Mat Mat Gar Mat Combat Hostiles Destroyed 33 | . 13 13 . 7 . Melee 24 | . 5 13 . 6 . Guns 4 | . 4 . . . . Cannons 1 | . . . . 1 . Classes Destroyed 7 | . 4 3 . . . Hauler 1 | . . 1 . . . Operator 2 | . 1 1 . . . Watcher 3 | . 3 . . . . Swarmer 12 | . 6 3 . 3 . Grunt 13 | . 7 4 . 2 . Duelist 1 | . . 1 . . . Sentry 7 | . . 5 . 2 . Best Kill Streak 3 | . 3 3 . 3 . Combat Bots Only 3 | . 3 3 . 3 . Max Kills in Single Turn 1 | . 1 1 . 1 . Gunslinging . | . . . . . . Exploded . | . . . . . . Melee 1 | . 1 1 . 1 . Uniques/NPCs Destroyed . | . . . . . . Combat | -11 -10 -9 -8 -8 -8 -------- Run | Yrd Mat Mat Mat Gar Mat Hostile Shots Fired 257 | . 83 67 4 99 4 Missed 58 | . 18 12 1 26 1 Damage Taken 2131 | . 608 724 25 727 47 Core 595 | . 142 171 8 254 20 Absorbed by Shields 50 | . . . . 50 . Core Remaining (%) 66 | 100 43 57 . . . Volleys Fired 23 | . 17 1 . 5 . Largest 2 | . 2 1 . 1 . Hottest 90 | . 90 63 . 68 . Shots Fired 29 | . 23 1 . 5 . Gun 24 | . 23 1 . . . Cannon 5 | . . . . 5 . Launcher . | . . . . . . Special . | . . . . . . Kinetic . | . . . . . . Thermal 16 | . 10 1 . 5 . Explosive . | . . . . . . Electromagnetic 13 | . 13 . . . . Robot Hit Streak 7 | . 7 1 . 2 . Robot Miss Streak 3 | . 3 . . 1 . Penetration Max . | . . . . . . Secondary Targets . | . . . . . . Shots Hit Robots 77 | . 38 28 . 11 . Core Hits 33 | . 10 16 . 7 . Critical Kills 1 | . 1 . . . . Critical Parts Destroyed 3 | . 3 . . . . Critical Strikes 9 | . 5 4 . . . Burn 1 | . 1 . . . . Smash 4 | . 4 . . . . Sever 4 | . . 4 . . . Melee Attacks 131 | . 48 64 . 19 . Impact 48 | . 48 . . . . Slashing 83 | . . 64 . 19 . Piercing . | . . . . . . Sneak Attacks 5 | . 3 2 . . . Combat Hostiles . | . . . . . . Follow-up Attacks 1 | . . 1 . . . Damage Inflicted 2549 | . 1311 931 . 307 . Guns 213 | . 195 18 . . . Cannons 61 | . . . . 61 . Explosions . | . . . . . . Melee 2275 | . 1116 913 . 246 . Ramming . | . . . . . . Kinetic . | . . . . . . Thermal 143 | . 64 18 . 61 . Explosive . | . . . . . . Electromagnetic 131 | . 131 . . . . Impact 1116 | . 1116 . . . . Slashing 1159 | . . 913 . 246 . Piercing . | . . . . . . Highest Corruption 2 | . 2 . . . . Average Corruption 2 | . 2 . . . . Corruption Purged . | . . . . . . Corruption Blocked . | . . . . . . Effects 2 | . 2 . . . . Matter Fused 2 | . 2 . . . . Overload Shots . | . . . . . . Overflow Damage 386 | . 383 3 . . . Projectiles . | . . . . . . Explosions . | . . . . . . Melee 386 | . 383 3 . . . Knockbacks 2 | . 2 . . . . Impact 1 | . 1 . . . . Kinetic . | . . . . . . Secondary 1 | . 1 . . . . Self-Inflicted Damage . | . . . . . . Shots . | . . . . . . Rammed . | . . . . . . Targets Rammed . | . . . . . . Kicked . | . . . . . . Crushed . | . . . . . . Highest Temperature 210 | . 210 10 . 139 . Average Temperature 75 | . 80 7 . 71 . Received Heat Transfer 588 | . 192 198 . 198 . Effects 1 | . 1 . . . . Interference 1 | . 1 . . . . Siege Activations . | . . . . . . Robots Corrupted 2 | . 2 . . . . Combat Hostiles 1 | . 1 . . . . Parts Fried 10 | . 10 . . . . Impact Corruptions 20 | . 20 . . . . Robots Melted . | . . . . . . Combat Hostiles . | . . . . . . Parts Melted 1 | . 1 . . . . Heat Transferred 407 | . 259 37 . 111 . Parts Sabotaged . | . . . . . . Parts Stolen . | . . . . . . Parts Stripped . | . . . . . . Power Chain Reactions . | . . . . . . Alert | -11 -10 -9 -8 -8 -8 ------- Run | Yrd Mat Mat Mat Gar Mat Peak Influence 268 | . 254 203 44 268 99 Initial 99 | . . . 40 28 99 Average 87 | . 85 84 40 138 97 Maximum Alert Level 1 | . 1 1 . 1 . Low Security (%) 90 | 100 88 97 100 65 100 Level 1 9 | . 11 2 . 34 . Level 2 . | . . . . . . Level 3 . | . . . . . . Level 4 . | . . . . . . Level 5 . | . . . . . . High Security . | . . . . . . Max Security . | . . . . . . Squads Dispatched 6 | . 4 2 . . . Investigation 2 | . 2 . . . . Extermination . | . . . . . . Reinforcement 4 | . 2 2 . . . Assault . | . . . . . . Garrison . | . . . . . . Intercept . | . . . . . . Searches Triggered . | . . . . . . Construction Impeded . | . . . . . . Haulers Reinforced . | . . . . . . Active Scanning Responses . | . . . . . . Cargo Convoy Interrupts . | . . . . . . Stealth | -11 -10 -9 -8 -8 -8 --------- Run | Yrd Mat Mat Mat Gar Mat Distress Signals 5 | . 2 3 . . . Communications Jammed . | . . . . . . Distress Signals . | . . . . . . Times Spotted 68 | . 24 19 4 19 2 Peak Tracking Total 14 | . 4 4 4 14 2 Tactical Retreats 5 | . 3 . . 2 . Traps | -11 -10 -9 -8 -8 -8 ------- Run | Yrd Mat Mat Mat Gar Mat Traps Triggered 5 | . 2 . . 2 1 Indirectly . | . . . . . . Trap Hack Attempts . | . . . . . . Triggered . | . . . . . . Disarmed . | . . . . . . Reprogrammed . | . . . . . . Reused . | . . . . . . Traps Extracted . | . . . . . . Installed . | . . . . . . Triggered . | . . . . . . Machines | -11 -10 -9 -8 -8 -8 ---------- Run | Yrd Mat Mat Mat Gar Mat Machines Disabled 3 | . 1 1 . 1 . Max in Single Turn 1 | . 1 1 . 1 . Garrison Relay 1 | . . . . 1 . Machines Repaired . | . . . . . . Machines Dismantled . | . . . . . . Machines Sabotaged . | . . . . . . Overloaded Fab Kills . | . . . . . . Hacking | -11 -10 -9 -8 -8 -8 --------- Run | Yrd Mat Mat Mat Gar Mat Machines Accessed 10 | . 4 4 1 1 . Terminals 8 | . 4 3 . 1 . Fabricators . | . . . . . . Repair Stations . | . . . . . . Recycling Units . | . . . . . . Scanalyzers 1 | . . 1 . . . Garrison Access 1 | . . . 1 . . Total Hacks 23 | . 9 10 2 2 . Successful 15 | . 7 6 1 1 . Failed 8 | . 2 4 1 1 . Catastrophic 3 | . 1 1 . 1 . Database Lockouts . | . . . . . . Manual 2 | . 1 1 . . . Terminals 18 | . 9 7 . 2 . Fabricators . | . . . . . . Repair Stations . | . . . . . . Recycling Units . | . . . . . . Scanalyzers 3 | . . 3 . . . Garrison Access 2 | . . . 2 . . Terminal Hacks 12 | . 7 4 . 1 . Open Door 1 | . . . . 1 . Alert Level 3 | . 2 1 . . . Unreport Threat 1 | . 1 . . . . Maintenance Status 1 | . 1 . . . . Patrol Status 1 | . . 1 . . . Hauler Manifests 2 | . . 2 . . . Registered Components 1 | . 1 . . . . Zone Layout 2 | . 2 . . . . Fabricator Hacks . | . . . . . . Repair Station Hacks . | . . . . . . Recycling Unit Hacks . | . . . . . . Scanalyzer 2 | . . 2 . . . Insert Component 1 | . . 1 . . . Analyze 1 | . . 1 . . . Garrison Access Hacks 1 | . . . 1 . . Unlock Access 1 | . . . 1 . . Unauthorized Hacks . | . . . . . . Terminals . | . . . . . . Fabricators . | . . . . . . Repair Stations . | . . . . . . Recycling Units . | . . . . . . Scanalyzers . | . . . . . . Garrison Access . | . . . . . . Data Cores Recovered . | . . . . . . Used . | . . . . . . Hacking Detections 7 | . 2 4 . 1 . Full Trace Events 1 | . . . . 1 . Feedback Events . | . . . . . . Feedback Blocked . | . . . . . . Robot Schematics Acquired . | . . . . . . Robots Built . | . . . . . . Authchips . | . . . . . . Time . | . . . . . . Total Robot Build Rating . | . . . . . . Part Schematics Acquired 1 | . . 1 . . . Parts Built . | . . . . . . Authchips . | . . . . . . Time . | . . . . . . Total Part Build Rating . | . . . . . . Parts Repaired . | . . . . . . Time . | . . . . . . Parts Recycled . | . . . . . . Recycled Matter . | . . . . . . Retrieved Matter . | . . . . . . Retrieved Components . | . . . . . . Parts Scanalyzed 1 | . . 1 . . . Part Schematics Acquired 1 | . . 1 . . . Parts Damaged . | . . . . . . Bothacking | -11 -10 -9 -8 -8 -8 ------------ Run | Yrd Mat Mat Mat Gar Mat Used RIF Installer . | . . . . . . Robots Hacked . | . . . . . . Non-combat . | . . . . . . Combat . | . . . . . . Robot Hacks Applied . | . . . . . . Relay Couplers Released 4 | . . . . 4 . Machine Destruction 4 | . . . . 4 . Fabnet Peak Effective % . | . . . . . . Robots Rewired . | . . . . . . Allies Hacked . | . . . . . . Hacks Repelled . | . . . . . . Allies | -11 -10 -9 -8 -8 -8 -------- Run | Yrd Mat Mat Mat Gar Mat Total Allies 2 | . . . . 2 . Largest Group 2 | . . . . 2 . Highest-Rated Group 56 | . . . . 56 . Highest-Rated Ally 31 | . . . . 31 . Total Orders . | . . . . . . Ally Attacks 11 | . . . . 11 . Total Damage 179 | . . . . 179 . Kills . | . . . . . . Allies Corrupted . | . . . . . . Allies Melted . | . . . . . . Intel | -11 -10 -9 -8 -8 -8 ------- Run | Yrd Mat Mat Mat Gar Mat Robot Analysis Total . | . . . . . . Derelict Logs Recovered . | . . . . . . Drone Launches . | . . . . . . Drone Recoveries . | . . . . . . Exploration | -11 -10 -9 -8 -8 -8 ------------- Run | Yrd Mat Mat Mat Gar Mat Turns Passed 2609 | 62 1203 1008 60 246 30 Spaces Moved 1319 | 47 531 442 46 196 57 Core 112 | 8 9 5 . 33 57 Treads . | . . . . . . Legs 661 | 39 522 100 . . . Wheels . | . . . . . . Hover 546 | . . 337 46 163 . Flight . | . . . . . . Fastest Speed 50 | 50 120 56 116 50 50 Average Speed 129 | 108 167 129 116 55 50 Slowest Speed 200 | 120 190 200 116 120 50 Overloaded Moves . | . . . . . . Propulsion Burnouts . | . . . . . . Robots Hopped . | . . . . . . Cave-ins Triggered . | . . . . . . Exploration Rate (%) 27 | 3 80 34 5 32 9 Regions Visited 5 Branch Regions . Pre-discovered Areas . | . . . . . . Known Exits Taken 1 | . . . 1 . . Unknown Exits Taken 3 | 1 1 1 . . . Scrap Searched . | . . . . . . Spaces Dug 28 | . 7 21 . . . Terrain Destroyed 28 | . 7 21 . . . Melee 28 | . 7 21 . . . Projectile . | . . . . . . AOE . | . . . . . . Terrain Rammed . | . . . . . . Walls Destroyed . | . . . . . . Machines Disabled . | . . . . . . Actions | -11 -10 -9 -8 -8 -8 --------- Run | Yrd Mat Mat Mat Gar Mat Total 1978 | 58 724 786 52 300 58 Wait 388 | . 106 216 . 65 1 Move 1314 | 46 530 441 45 195 57 Hop . | . . . . . . Pick Up 42 | 6 13 19 3 1 . Fast Attach 3 | . . 3 . . . Attach 27 | 6 5 12 2 2 . Detach 2 | . . 2 . . . Swap 17 | . 3 12 1 1 . Drop 22 | . 2 17 1 2 . Fire 23 | . 17 1 . 5 . Melee 130 | . 48 63 . 19 . Ram . | . . . . . . Kick . | . . . . . . Crush . | . . . . . . Escape Stasis 10 | . . . . 10 . Rewire . | . . . . . . Trap . | . . . . . . Miscellaneous . | . . . . . . Route ------- -11/Scrapyard -10/Materials (discovered 3 exits: *Mat x2 / [*Min]) -9/Materials -8/Materials -8/Garrison -8/Materials History --------- Turn | Location | Event 3 | -11/Scrapyard | Discovered new exit (range 16) 63 | -11/Scrapyard | Entered Materials 303 | -10/Materials | Build established: Mutant 314 | -10/Materials | Discovered new exit (range 6) 535 | -10/Materials | Discovered new exit (range 8) 770 | -10/Materials | Core integrity fell below 50% 863 | -10/Materials | Derelicts attacked the area 877 | -10/Materials | Discovered new exit (range 14) 1266 | -10/Materials | Entered another Materials area 1266 | -9/Materials | Evolved 2 slots: Utility x2 2135 | -9/Materials | Lost 4 parts (1p1n2w) 2194 | -9/Materials | Discovered new exit (range 16) 2274 | -9/Materials | Entered another Materials area 2274 | -8/Materials | Evolved 2 slots: Utility x2 2320 | -8/Materials | Identified exit to Garrison 2334 | -8/Materials | Entered Garrison 2384 | -8/Garrison | Triggered checkpoint 2387 | -8/Garrison | Garrison Relay disabled 2457 | -8/Garrison | Rescued a captive Derelict 2461 | -8/Garrison | Rescued a captive Derelict 2524 | -8/Garrison | Triggered checkpoint 2534 | -8/Garrison | Triggered checkpoint 2574 | -8/Garrison | Discovered new exit (range 12) 2580 | -8/Garrison | Identified exit to Materials 2580 | -8/Garrison | Entered Materials 2607 | -8/Materials | Core integrity fell below 50% 2610 | -8/Materials | Self-destructed Last Messages --------------- 02560_ Field strength at 47. 02561_ Field strength at 36. 02562_ Field strength at 18. 02564_ Stasis field depleted. 02565_ Airjet destroyed. 02574_ EXIT=FOUND 02579_ Scythe destroyed. 02580_ EXIT=IDENTIFIED: MATERIALS LOCATION=MATERIALS GOAL=ESCAPE You have entered the same map type at the same depth as a previous visit, though this is a different location at that depth rather than "revisiting" the exact same area. 02606_ Triggered Proton Bomb Trap. 02606_ A bubble of electromagnetic force engulfs the area. 02606_ Sensor Array destroyed. 02606_ Door malfunctions. 02606_ Processing Tank disabled. Map ----- +----------------------------------------------------+ | ?????????????????????????????????????????????????? | | ?????????????????????????????????????????????????? | | ?????????????????????????????????????????????????? | | ?????????????????????????????????????????????????? | | ?????????????????????????????????????????????????? | | ?????????????????????????????????????????????????? | | ?????????????????????????????????????????????????? | | ?????????????????????????????????????????????????? | | ?????????????????????????????????????????????????? | | ?????????????????????????????????????????????????? | | ?????????????????????????????????????????????????? | | ?????????????????????????????????????????????????? | | ?????????????????????????????????????????????????? | | ?????????????????????????????????????????????????? | | ?????????????????????????????????????????????????? | | ?????????????????????????????????????????????????? | | ?????????????????????????????????????????????????? | | ?????????????????????????????????????????????????? | | ?????????????????????????????????????????????????? | | ?????????????????????????????????????????????????? | | ???????????? ?????????##########?????????????????? | | ???????????? ?????????# #?????????????????? | | ???????????? ?????????# """ #?????????????????? | | ???????????? #????????# """ #?????????????????? | | ???????????? #????????# """ #?????????????????? | | ?????????### ###??????# @ #?????????????????? | | ?????????# #??????# """"" #?????????????????? | | ????????? #??????# s""""" #?????????????????? | | ????????? T +??????# s""""" #?????????????????? | | ?????????? #??????# #?????????????????? | | ?????????? #??????####/#####?????????????????? | | ??????????# ########### #### #?????????????? | | ??###/##### # ## #?????????????? | | ??# # # / #?????????????? | | ??# / # ## "" #?????????????? | | ??# # # ## """ #?????????????? | | ??# # # ## """ ????????????? | | ########### ###+####### """ ???????????? | | """ ? ????????????? | | ????????????????? | | ????????????????? | | ###+############## ########### ???????????????? | | # #?????????? #?????????? ???????????????? | | # #?????????? #???????????????????????????? | | # """#?????????? +???????????????????????????? | | # """#?????????? #???????????????????????????? | | # """#?????????? #???????????????????????????? | | # #?????????? #???????????????????????????? | | ########?????????? #???????????????????????????? | | ??????????????????? #???????????????????????????? | +----------------------------------------------------+ Best States ------------- Heat Dissipation 31 Energy Generation 14 Energy Capacity 265 Matter Stores 300 Matter Capacity 300 Sight Range 16 Robot Scan Range 14 Terrain Scan Density 210 Additional Mass Support 6 Armor Coverage 150 Propulsion Shielding 33 Evasion (%) 55 Targeting Accuracy 8 Item Schematics ----------------- Imp. Signal Interpreter | -9/Materials | Scanalyzed Robot Schematics ------------------ None Fabricated ------------ Nothing Alien Tech Used ----------------- None Achievements -------------- None Challenges ------------ None Game ------ Seed LobotomyActiveSpear Manual? 0 Play Time 00:28:00 Cumulative 20.2 hours Start 2024.08.03 @ 18:21:35 End 2024.08.03 @ 19:03:33 Sessions 1 Manual Loads 0 Difficulty Rogue Special Mode None Game No. 31 Rogue 27 Adventurer 4 Explorer 0 Win Type - Total 0 Types 0/0/0/0/0/0/0/0/0 Lore% 7 Gallery% 24 Achievement% 16 Wizard Run 0 Options --------- Layout 1 ASCII 0 Keyboard 0 Movement Mouse Keybinds 0 Fullscreen 2 Font 24/Smallcaps Map View 50x35 Zoom Use 0% Tactical HUD 1 Map Filters NONE Filters NONE Steam 1 RUN: 03b2e335-97fc-437f-ae12-b9cf8e40582b